[Event "GER-chT Youth Countries 2020"]
[Site "Berlin"]
[Date "2020.10.03"]
[Round "6"]
[White "Kolb, Tobias"]
[Black "Post, Hugo"]
[Result "1/2-1/2"]
[ECO "E32"]
[WhiteElo "2268"]
[BlackElo "2209"]
[Annotator "ChessBase"]
[PlyCount "81"]
[EventDate "2020.09.30"]
[EventType "team-tourn"]
[EventRounds "7"]
[EventCountry "GER"]
[SourceTitle "playchess.com"]
[Source "ChessBase"]
[SourceQuality "1"]
[TimeControl "30/5400+30:0"]

1. d4 {[%emt 0:00:00]} Nf6 {[%emt 0:00:00]} 2. c4 {[%emt 0:00:00]} e6 {[%emt 0:00:00]} 3. Nc3 {[%emt 0:00:00]} Bb4 {[%emt 0:00:02]} 4. Qc2 {[%emt 0:00:14]} O-O {[%emt 0:01:58]} 5. Nf3 {[%emt 0:00:12]} c5 {[%emt 0:00:48]} 6. dxc5 {[%emt 0:01:17]} Bxc5 {[%emt 0:01:34]} 7. Bg5 {[%emt 0:02:09]} h6 {[%emt 0:03:47]} 8. Bh4 {[%emt 0:01:55]} Nc6 {[%emt 0:02:35]} 9. a3 {[%emt 0:09:33]} Nd4 {[%emt 0:17:20]} 10. Nxd4 {[%emt 0:07:59]} Bxd4 {[%emt 0:01:47]} 11. e3 {[%emt 0:00:29]} Be5 {[%emt 0:04:12]} 12. Be2 {[%emt 0:06:49]} b6 {[%emt 0:07:04]} 13. f4 {[%emt 0:05:02]} Bxc3+ {[%emt 0:14:03]} 14. Qxc3 {[%emt 0:00:10]} Bb7 {[%emt 0:00:08]} 15. Bf3 {[%emt 0:17:07]} Bxf3 {[%emt 0:02:59]} 16. gxf3 {[%emt 0:00:06]} Nd5 {[%emt 0:01:21]} 17. Bxd8 {[%emt 0:02:48]} Nxc3 {[%emt 0:00:05]} 18. Be7 {[%emt 0:07:12]} Rfe8 {[%emt 0:00:07]} 19. Bd6 {[%emt 0:00:43]} Na4 {[%emt 0:00:07]} 20. b3 {[%emt 0:00:41]} Nc5 {[%emt 0:00:29]} 21. Rb1 {[%emt 0:04:32]} Rac8 {[%emt 0:01:52]} 22. Ke2 {[%emt 0:00:25]} Nb7 {[%emt 0:02:01]} 23. Rhd1 {[%emt 0:04:13]} Rc6 {[%emt 0:06:02]} 24. Be5 {[%emt 0:01:35]} d6 {[%emt 0:00:57]} 25. Bd4 {[%emt 0:00:56]} a6 {[%emt 0:05:14]} 26. a4 {[%emt 0:01:48]} e5 {[%emt 0:06:29]} 27. fxe5 {[%emt 0:00:10]} dxe5 {[%emt 0:00:01]} 28. Ba1 {[%emt 0:05:37]} f6 {[%emt 0:00:22]} 29. Rd5 {[%emt 0:03:34]} Kf7 {[%emt 0:05:05]} 30. Bc3 {[%emt 0:00:54]} Rd8 {[%emt 0:04:42]} 31. Rxd8 {[%emt 1:32:11]} Nxd8 {[%emt 1:30:01]} 32. Rd1 {[%emt 0:00:33]} Ne6 {[%emt 0:00:46]} 33. Bb4 {[%emt 0:01:48]} Ke8 {[%emt 0:04:11]} 34. h4 {[%emt 0:01:33]} Nc5 {[%emt 0:04:25]} 35. Bxc5 {[%emt 0:06:17]} bxc5 {[%emt 0:00:02]} 36. a5 {[%emt 0:00:05]} Ke7 {[%emt 0:00:27]} 37. h5 {[%emt 0:00:08]} Ke6 {[%emt 0:01:34]} 38. e4 {[%emt 0:00:50]} Rd6 {[%emt 0:03:16]} 39. Rxd6+ {[%emt 0:01:16]} Kxd6 {[%emt 0:00:00]} 40. Kd3 {[%emt 0:00:06]} Ke6 {[%emt 0:00:04]} 41. Kc3 {[%emt 0:00:23]} 1/2-1/2

[Event "GER-chT Youth Countries 2020"]
[Site "Berlin"]
[Date "2020.10.03"]
[Round "6"]
[White "Yi, Danny"]
[Black "Grossmann, Piet"]
[Result "1/2-1/2"]
[ECO "C10"]
[WhiteElo "2266"]
[BlackElo "1849"]
[Annotator "ChessBase"]
[PlyCount "101"]
[EventDate "2020.09.30"]
[EventType "team-tourn"]
[EventRounds "7"]
[EventCountry "GER"]
[SourceTitle "playchess.com"]
[Source "ChessBase"]
[SourceQuality "1"]
[TimeControl "30/5400+30:0"]

1. e4 {[%emt 0:00:00]} e6 {[%emt 0:00:00]} 2. d4 {[%emt 0:00:00]} d5 {[%emt 0:00:00]} 3. Nd2 {[%emt 0:00:00]} dxe4 {[%emt 0:00:00]} 4. Nxe4 {[%emt 0:00:00]} Bd7 {[%emt 0:00:00]} 5. Nf3 {[%emt 0:10:04]} Bc6 {[%emt 0:00:00]} 6. Bd3 {[%emt 0:01:51]} Bxe4 {[%emt 0:00:00]} 7. Bxe4 {[%emt 0:00:09]} c6 {[%emt 0:00:00]} 8. Qe2 {[%emt 0:06:57]} Nf6 {[%emt 0:02:01]} 9. Bg5 {[%emt 0:02:34]} Be7 {[%emt 0:05:49]} 10. Bxf6 {[%emt 0:00:40]} Qa5+ {[%emt 0:05:15]} 11. c3 {[%emt 0:00:30]} Bxf6 {[%emt 0:00:30]} 12. Qc2 {[%emt 0:00:30]} h6 {[%emt 0:00:30]} 13. Qb3 {[%emt 0:00:30]} Qc7 {[%emt 0:00:30]} 14. O-O-O {[%emt 0:00:30]} Nd7 {[%emt 0:17:57]} 15. Kb1 {[%emt 0:21:35]} O-O-O {[%emt 0:30:03]} 16. Rhe1 {[%emt 0:04:24]} Kb8 {[%emt 0:01:12]} 17. g3 {[%emt 0:09:36]} Nb6 {[%emt 0:03:15]} 18. Nd2 {[%emt 0:02:59]} c5 {[%emt 0:03:54]} 19. dxc5 {[%emt 0:06:12]} Qxc5 {[%emt 0:00:28]} 20. f4 {[%emt 0:00:51]} Qc7 {[%emt 0:02:06]} 21. Bg2 {[%emt 0:03:23]} g6 {[%emt 0:07:11]} 22. a4 {[%emt 0:04:30]} Nc8 {[%emt 0:03:54]} 23. Nc4 {[%emt 0:05:18]} Nb6 {[%emt 0:10:47]} 24. Nd2 {[%emt 0:11:40]} Nc8 {[%emt 0:00:23]} 25. Nc4 {[%emt 0:00:52]} Nb6 {[%emt 0:00:05]} 26. Na5 {[%emt 0:00:54]} Nd5 {[%emt 0:00:30]} 27. Nxb7 {[%emt 0:00:30]} Qxb7 {[%emt 0:01:55]} 28. Qxb7+ Kxb7 {[%emt 0:00:07]} 29. c4 {[%emt 0:01:02]} Kb8 {[%emt 0:01:19]} 30. cxd5 {[%emt 0:00:27]} exd5 {[%emt 0:00:55]} 31. Bxd5 {[%emt 1:30:51]} Rd7 {[%emt 1:30:34]} 32. Re3 {[%emt 0:01:35]} a6 33. Red3 {[%emt 0:01:40]} Ka7 {[%emt 0:04:18]} 34. Bc4 {[%emt 0:01:25]} Rxd3 {[%emt 0:00:51]} 35. Rxd3 {[%emt 0:00:01]} Rb8 {[%emt 0:00:22]} 36. Rd7+ {[%emt 0:00:47]} Rb7 {[%emt 0:00:05]} 37. Rxb7+ {[%emt 0:00:20]} Kxb7 {[%emt 0:00:02]} 38. Bxf7 {[%emt 0:00:07]} g5 {[%emt 0:00:05]} 39. b4 {[%emt 0:01:33]} gxf4 {[%emt 0:00:30]} 40. gxf4 {[%emt 0:00:01]} Be7 {[%emt 0:00:50]} 41. b5 {[%emt 0:00:33]} axb5 {[%emt 0:00:25]} 42. axb5 {[%emt 0:00:02]} Bd6 {[%emt 0:00:07]} 43. f5 {[%emt 0:00:34]} Bxh2 {[%emt 0:00:12]} 44. Kc2 {[%emt 0:00:43]} Kb6 {[%emt 0:00:28]} 45. Be8 {[%emt 0:00:00]} Be5 {[%emt 0:00:00]} 46. Kd3 {[%emt 0:00:00]} h5 {[%emt 0:00:00]} 47. Ke4 {[%emt 0:00:00]} Bf6 {[%emt 0:00:00]} 48. Kd5 {[%emt 0:00:00]} h4 {[%emt 0:00:00]} 49. Ke6 {[%emt 0:00:00]} Bd8 {[%emt 0:00:00]} 50. f6 {[%emt 0:00:00]} Bxf6 {[%emt 0:00:00]} 51. Kxf6 {[%emt 0:00:00]} 1/2-1/2

[Event "GER-chT Youth Countries 2020"]
[Site "Berlin"]
[Date "2020.10.03"]
[Round "6"]
[White "Weishaeutel, Moritz"]
[Black "Faerber, David"]
[Result "0-1"]
[ECO "B48"]
[WhiteElo "2222"]
[BlackElo "2321"]
[Annotator "ChessBase"]
[PlyCount "93"]
[EventDate "2020.09.30"]
[EventType "team-tourn"]
[EventRounds "7"]
[EventCountry "GER"]
[SourceTitle "playchess.com"]
[Source "ChessBase"]
[SourceQuality "1"]
[TimeControl "30/5400+30:0"]

1. e4 {[%emt 0:00:00]} c5 {[%emt 0:00:00]} 2. Nf3 {[%emt 0:00:00]} Nc6 {[%emt 0:00:00]} 3. d4 {[%emt 0:00:00]} cxd4 {[%emt 0:00:02]} 4. Nxd4 {[%emt 0:00:00]} e6 {[%emt 0:00:21]} 5. Nc3 {[%emt 0:00:00]} Qc7 {[%emt 0:00:06]} 6. Be3 {[%emt 0:00:01]} a6 {[%emt 0:00:05]} 7. Qf3 {[%emt 0:00:08]} Nf6 {[%emt 0:01:08]} 8. O-O-O {[%emt 0:00:30]} Ne5 {[%emt 0:00:23]} 9. Qg3 {[%emt 0:00:15]} b5 {[%emt 0:00:08]} 10. a3 {[%emt 0:00:23]} Bb7 {[%emt 0:04:15]} 11. f3 {[%emt 0:00:06]} Rc8 {[%emt 0:00:13]} 12. Kb1 {[%emt 0:01:37]} h5 {[%emt 0:01:52]} 13. h4 {[%emt 0:38:59]} Nc4 {[%emt 0:00:34]} 14. Qxc7 {[%emt 0:00:08]} Rxc7 {[%emt 0:00:05]} 15. Bxc4 {[%emt 0:00:11]} Rxc4 {[%emt 0:10:22]} 16. Nb3 {[%emt 0:02:30]} Rc8 {[%emt 0:00:50]} 17. Bd4 {[%emt 0:01:28]} d6 {[%emt 0:04:05]} 18. Ne2 {[%emt 0:08:53]} Be7 {[%emt 0:14:51]} 19. Bxf6 {[%emt 0:03:27]} gxf6 {[%emt 0:01:11]} 20. Nf4 {[%emt 0:00:27]} Kd7 {[%emt 0:16:04]} 21. Rh2 {[%emt 0:03:33]} Kc7 {[%emt 0:03:20]} 22. Nd2 {[%emt 0:03:20]} Rcg8 {[%emt 0:04:39]} 23. Nf1 {[%emt 0:00:20]} Bf8 {[%emt 0:00:42]} 24. Rd3 {[%emt 0:09:11]} d5 {[%emt 0:07:25]} 25. exd5 {[%emt 0:02:26]} Bd6 {[%emt 0:00:11]} 26. g3 {[%emt 0:00:05]} Bxf4 {[%emt 0:01:32]} 27. gxf4 {[%emt 0:00:01]} Bxd5 {[%emt 0:00:16]} 28. Rh1 {[%emt 0:01:05]} Bc6 {[%emt 0:07:38]} 29. Nd2 {[%emt 0:03:27]} Rg2 {[%emt 0:00:18]} 30. Ne4 {[%emt 0:02:01]} Bxe4 {[%emt 0:02:13]} 31. fxe4 {[%emt 1:30:02]} Rd8 {[%emt 1:31:46]} 32. Rhd1 {[%emt 0:03:24]} Rxd3 {[%emt 0:00:30]} 33. Rxd3 {[%emt 0:00:01]} Rg4 {[%emt 0:00:33]} 34. e5 {[%emt 0:01:53]} Rxh4 {[%emt 0:04:11]} 35. Rf3 {[%emt 0:00:01]} f5 {[%emt 0:01:01]} 36. Ka2 {[%emt 0:01:38]} Kc6 {[%emt 0:00:54]} 37. Kb3 {[%emt 0:01:06]} Kd5 {[%emt 0:00:15]} 38. Kb4 {[%emt 0:00:43]} Ke4 {[%emt 0:00:15]} 39. Rb3 {[%emt 0:00:03]} Kxf4 {[%emt 0:07:14]} 40. Ka5 {[%emt 0:00:06]} Kxe5 {[%emt 0:00:29]} 41. Kxa6 {[%emt 0:00:06]} Rc4 {[%emt 0:00:50]} 42. Kxb5 {[%emt 0:06:21]} Rxc2 {[%emt 0:00:12]} 43. a4 {[%emt 0:00:10]} h4 {[%emt 0:01:03]} 44. a5 {[%emt 0:00:42]} h3 {[%emt 0:00:12]} 45. Rxh3 {[%emt 0:01:09]} Rxb2+ {[%emt 0:00:05]} 46. Kc6 {[%emt 0:00:08]} Ra2 {[%emt 0:01:09]} 47. Kb6 {[%emt 0:00:05]} 0-1

[Event "GER-chT Youth Countries 2020"]
[Site "Berlin"]
[Date "2020.10.03"]
[Round "6"]
[White "Knuedel, Torben"]
[Black "Hinrichs, Paul"]
[Result "0-1"]
[ECO "C97"]
[WhiteElo "2211"]
[BlackElo "2152"]
[Annotator "ChessBase"]
[PlyCount "112"]
[EventDate "2020.09.30"]
[EventType "team-tourn"]
[EventRounds "7"]
[EventCountry "GER"]
[SourceTitle "playchess.com"]
[Source "ChessBase"]
[SourceQuality "1"]
[TimeControl "30/5400+30:0"]

1. e4 {[%emt 0:00:00]} e5 {[%emt 0:00:00]} 2. Nf3 {[%emt 0:00:00]} Nc6 {[%emt 0:00:00]} 3. Bb5 {[%emt 0:00:00]} a6 {[%emt 0:00:00]} 4. Ba4 {[%emt 0:00:00]} Nf6 {[%emt 0:00:00]} 5. O-O {[%emt 0:00:00]} Be7 {[%emt 0:00:05]} 6. Re1 {[%emt 0:00:01]} b5 {[%emt 0:00:43]} 7. Bb3 {[%emt 0:00:06]} d6 {[%emt 0:00:00]} 8. c3 {[%emt 0:00:12]} O-O {[%emt 0:00:06]} 9. h3 {[%emt 0:00:05]} Na5 10. Bc2 c5 {[%emt 0:01:21]} 11. d4 {[%emt 0:00:13]} Qc7 {[%emt 0:00:09]} 12. b4 {[%emt 0:09:57]} Nc4 {[%emt 0:05:05]} 13. bxc5 {[%emt 0:00:26]} dxc5 {[%emt 0:06:48]} 14. d5 {[%emt 0:05:55]} Ne8 15. a4 {[%emt 0:01:12]} Rb8 {[%emt 0:05:57]} 16. axb5 {[%emt 0:02:07]} axb5 {[%emt 0:03:16]} 17. Nbd2 {[%emt 0:03:21]} Nxd2 18. Bxd2 {[%emt 0:04:05]} b4 {[%emt 0:17:59]} 19. cxb4 {[%emt 0:03:55]} cxb4 {[%emt 0:04:34]} 20. Ba4 Bd6 {[%emt 0:05:12]} 21. Qb3 {[%emt 0:10:17]} f5 {[%emt 0:04:04]} 22. Rac1 {[%emt 0:08:40]} Qa7 {[%emt 0:03:15]} 23. Be3 {[%emt 0:07:05]} Qe7 {[%emt 0:00:56]} 24. exf5 {[%emt 0:05:39]} Bxf5 {[%emt 0:06:33]} 25. Bc5 {[%emt 0:11:13]} e4 {[%emt 0:03:21]} 26. Nd4 {[%emt 0:07:40]} Qf6 {[%emt 0:11:22]} 27. Qe3 {[%emt 0:02:01]} Ra8 {[%emt 0:01:10]} 28. Bxe8 Ra3 {[%emt 0:01:31]} 29. Nb3 {[%emt 0:06:05]} Rxe8 {[%emt 0:03:28]} 30. Bd4 Qf7 31. Rc6 {[%emt 1:37:03]} Bf8 {[%emt 1:36:12]} 32. Qg5 {[%emt 0:01:54]} Rxb3 {[%emt 0:02:00]} 33. Rf6 Qd7 {[%emt 0:03:26]} 34. Rxf5 {[%emt 0:01:14]} Rd3 {[%emt 0:02:13]} 35. Bb2 h6 {[%emt 0:00:15]} 36. Qg6 {[%emt 0:02:51]} Rd2 {[%emt 0:00:51]} 37. Be5 {[%emt 0:03:53]} b3 {[%emt 0:02:56]} 38. Rxe4 {[%emt 0:01:00]} b2 39. Re1 Rxd5 {[%emt 0:01:29]} 40. Kh2 {[%emt 0:01:15]} Rdxe5 {[%emt 0:00:50]} 41. Rfxe5 {[%emt 0:00:00]} Rxe5 {[%emt 0:00:00]} 42. Rxe5 {[%emt 0:00:00]} Qd6 {[%emt 0:00:00]} 43. Qe4 {[%emt 0:00:00]} Qb8 44. g3 b1=Q {[%emt 0:00:00]} 45. Qd5+ {[%emt 0:00:00]} Kh8 {[%emt 0:00:00]} 46. Rf5 Qa1 {[%emt 0:00:00]} 47. Qf3 {[%emt 0:00:00]} Qaa8 {[%emt 0:00:00]} 48. h4 {[%emt 0:00:00]} Qxf3 {[%emt 0:00:00]} 49. Rxf3 {[%emt 0:00:00]} Be7 {[%emt 0:00:00]} 50. Rf4 {[%emt 0:00:00]} Qe5 51. Kg1 {[%emt 0:00:00]} Bc5 {[%emt 0:00:00]} 52. Kg2 {[%emt 0:00:00]} g5 {[%emt 0:00:00]} 53. hxg5 {[%emt 0:00:00]} hxg5 {[%emt 0:00:00]} 54. Ra4 {[%emt 0:00:00]} Qd5+ {[%emt 0:00:00]} 55. Kh2 {[%emt 0:00:00]} Bxf2 {[%emt 0:00:00]} 56. g4 {[%emt 0:00:00]} Bg1+ {[%emt 0:00:00]} 0-1

[Event "GER-chT Youth Countries 2020"]
[Site "Berlin"]
[Date "2020.10.03"]
[Round "6"]
[White "Matthes, Aaron"]
[Black "Hesse, Henrik"]
[Result "1-0"]
[ECO "A45"]
[WhiteElo "2198"]
[BlackElo "2242"]
[Annotator "ChessBase"]
[PlyCount "62"]
[EventDate "2020.09.30"]
[EventType "team-tourn"]
[EventRounds "7"]
[EventCountry "GER"]
[SourceTitle "playchess.com"]
[Source "ChessBase"]
[SourceQuality "1"]
[TimeControl "30/5400+30:0"]

1. d4 {[%emt 0:00:00]} Nf6 {[%emt 0:00:00]} 2. Bg5 {[%emt 0:00:00]} d5 {[%emt 0:00:20]} 3. Bxf6 {[%emt 0:00:00]} gxf6 {[%emt 0:00:38]} 4. e3 {[%emt 0:00:03]} c5 {[%emt 0:01:29]} 5. dxc5 {[%emt 0:00:17]} e6 {[%emt 0:06:20]} 6. Nf3 {[%emt 0:00:30]} Bxc5 {[%emt 0:01:35]} 7. Be2 {[%emt 0:00:07]} Nc6 {[%emt 0:01:13]} 8. O-O {[%emt 0:00:09]} O-O {[%emt 0:02:48]} 9. c4 {[%emt 0:00:04]} dxc4 {[%emt 0:04:54]} 10. Qc2 {[%emt 0:00:05]} b6 {[%emt 0:10:50]} 11. Qxc4 {[%emt 0:00:26]} Bb7 {[%emt 0:06:02]} 12. Nc3 {[%emt 0:02:48]} f5 {[%emt 0:05:52]} 13. Rfd1 {[%emt 0:02:31]} Qf6 {[%emt 0:21:26]} 14. Rd7 {[%emt 0:06:36]} Na5 {[%emt 0:01:05]} 15. Qf4 {[%emt 0:03:02]} Rfd8 {[%emt 0:06:38]} 16. Rad1 {[%emt 0:06:20]} Rxd7 {[%emt 0:02:11]} 17. Rxd7 {[%emt 0:00:06]} Bxf3 {[%emt 0:16:24]} 18. Bxf3 {[%emt 0:00:45]} Rd8 {[%emt 0:00:13]} 19. Ne4 {[%emt 0:10:02]} fxe4 {[%emt 0:03:26]} 20. Qxf6 {[%emt 0:00:09]} Rxd7 {[%emt 0:00:08]} 21. Bh5 {[%emt 0:01:17]} Bf8 {[%emt 0:01:15]} 22. Qc3 {[%emt 0:02:07]} Rd5 {[%emt 0:01:47]} 23. g4 {[%emt 0:01:27]} Rd7 {[%emt 0:04:13]} 24. h4 {[%emt 0:02:59]} Nb7 {[%emt 0:00:17]} 25. Qc6 {[%emt 0:00:30]} Rd1+ {[%emt 0:00:05]} 26. Kg2 {[%emt 0:00:05]} Nd6 {[%emt 0:00:09]} 27. Qd7 {[%emt 0:00:57]} Rb1 {[%emt 0:00:19]} 28. b3 {[%emt 0:03:42]} a5 {[%emt 0:00:04]} 29. g5 {[%emt 0:06:45]} Rb2 {[%emt 0:00:27]} 30. Bg4 {[%emt 0:00:10]} Rxa2 {[%emt 0:01:48]} 31. h5 {[%emt 1:30:59]} Rc2 {[%emt 1:31:00]} 1-0

[Event "GER-chT Youth Countries 2020"]
[Site "Berlin"]
[Date "2020.10.03"]
[Round "6"]
[White "Musiolik, David"]
[Black "Stelmaszyk, Nico"]
[Result "1-0"]
[ECO "C63"]
[WhiteElo "2198"]
[BlackElo "2301"]
[Annotator "ChessBase"]
[PlyCount "75"]
[EventDate "2020.09.30"]
[EventType "team-tourn"]
[EventRounds "7"]
[EventCountry "GER"]
[SourceTitle "playchess.com"]
[Source "ChessBase"]
[SourceQuality "1"]
[TimeControl "30/5400+30:0"]

1. e4 {[%emt 0:00:00]} e5 {[%emt 0:00:00]} 2. Nf3 {[%emt 0:00:38]} Nc6 {[%emt 0:00:00]} 3. Bb5 {[%emt 0:00:43]} f5 {[%emt 0:00:00]} 4. d4 {[%emt 0:07:20]} fxe4 {[%emt 0:00:00]} 5. Bxc6 {[%emt 0:01:34]} bxc6 {[%emt 0:06:17]} 6. Nxe5 {[%emt 0:02:03]} Nf6 {[%emt 0:00:46]} 7. O-O {[%emt 0:03:08]} Bd6 {[%emt 0:04:55]} 8. Re1 {[%emt 0:03:11]} Qe7 {[%emt 0:05:09]} 9. Ng4 {[%emt 0:04:27]} O-O {[%emt 0:05:11]} 10. Nc3 {[%emt 0:02:47]} Nxg4 {[%emt 0:11:09]} 11. Qxg4 {[%emt 0:00:21]} Qf7 {[%emt 0:00:10]} 12. Nxe4 {[%emt 0:08:07]} Bxh2+ {[%emt 0:07:51]} 13. Kxh2 {[%emt 0:00:15]} d5 {[%emt 0:00:05]} 14. Qg3 {[%emt 0:01:26]} dxe4 {[%emt 0:01:23]} 15. Rxe4 {[%emt 0:00:17]} Qxf2 {[%emt 0:02:42]} 16. Re7 {[%emt 0:01:28]} Qxg3+ {[%emt 0:21:11]} 17. Kxg3 {[%emt 0:00:06]} Rf1 {[%emt 0:00:07]} 18. b3 {[%emt 0:04:18]} Bf5 {[%emt 0:01:30]} 19. c3 {[%emt 0:03:05]} Rd1 {[%emt 0:05:47]} 20. Bb2 {[%emt 0:13:35]} Rd2 {[%emt 0:00:41]} 21. Ba3 {[%emt 0:00:26]} Rd3+ {[%emt 0:04:07]} 22. Kh2 {[%emt 0:03:46]} Rxc3 {[%emt 0:00:33]} 23. Rf1 {[%emt 0:00:40]} Bg6 {[%emt 0:06:58]} 24. Rxc7 {[%emt 0:02:38]} Rc2 {[%emt 0:02:03]} 25. Rf4 {[%emt 0:02:01]} Re8 {[%emt 0:09:19]} 26. Bd6 {[%emt 0:02:49]} Be4 {[%emt 0:00:58]} 27. Rg4 {[%emt 0:00:56]} g6 {[%emt 0:00:05]} 28. Be5 {[%emt 0:02:22]} Bf5 {[%emt 0:00:19]} 29. Rg3 {[%emt 0:00:43]} Rxa2 {[%emt 0:03:19]} 30. Rg7+ {[%emt 0:00:33]} Kf8 {[%emt 0:00:01]} 31. Rxh7 {[%emt 1:30:11]} c5 {[%emt 1:30:35]} 32. Rc3 {[%emt 0:09:16]} Rc2 {[%emt 0:01:02]} 33. Re3 {[%emt 0:01:07]} cxd4 {[%emt 0:01:04]} 34. Bg7+ {[%emt 0:00:37]} Kf7 {[%emt 0:00:53]} 35. Bh6+ {[%emt 0:00:29]} Kg8 {[%emt 0:00:32]} 36. Rg7+ {[%emt 0:00:12]} Kf8 {[%emt 0:00:08]} 37. Rb7+ {[%emt 0:00:10]} Kg8 {[%emt 0:00:11]} 38. Rxe8# {[%emt 0:00:05]} 1-0

[Event "GER-chT Youth Countries 2020"]
[Site "Berlin"]
[Date "2020.10.03"]
[Round "6"]
[White "Lesny, Florian"]
[Black "Niermann, Tristan"]
[Result "1-0"]
[ECO "C50"]
[WhiteElo "2178"]
[BlackElo "2262"]
[Annotator "ChessBase"]
[PlyCount "51"]
[EventDate "2020.09.30"]
[EventType "team-tourn"]
[EventRounds "7"]
[EventCountry "GER"]
[SourceTitle "playchess.com"]
[Source "ChessBase"]
[SourceQuality "1"]
[TimeControl "30/5400+30:0"]

1. e4 {[%emt 0:00:00]} e5 {[%emt 0:00:00]} 2. Nf3 {[%emt 0:00:00]} Nc6 {[%emt 0:00:00]} 3. Bc4 {[%emt 0:00:00]} Bc5 {[%emt 0:00:00]} 4. O-O {[%emt 0:00:00]} Nf6 {[%emt 0:00:48]} 5. d3 {[%emt 0:00:27]} a6 {[%emt 0:00:29]} 6. c3 {[%emt 0:00:10]} Ba7 {[%emt 0:00:15]} 7. Re1 {[%emt 0:00:44]} d6 {[%emt 0:00:26]} 8. Bb3 {[%emt 0:00:12]} O-O {[%emt 0:00:11]} 9. h3 {[%emt 0:00:41]} Be6 {[%emt 0:00:29]} 10. Bc2 {[%emt 0:04:32]} Qd7 {[%emt 0:02:15]} 11. Be3 {[%emt 0:04:06]} Bxe3 {[%emt 0:03:38]} 12. Rxe3 {[%emt 0:05:36]} d5 {[%emt 0:12:22]} 13. Ng5 {[%emt 0:05:41]} dxe4 {[%emt 0:01:26]} 14. Nxe6 {[%emt 0:07:12]} Qxe6 {[%emt 0:01:43]} 15. dxe4 {[%emt 0:01:42]} Rad8 {[%emt 0:01:08]} 16. Qe2 {[%emt 0:00:34]} Rd6 {[%emt 0:11:03]} 17. Nd2 {[%emt 0:02:08]} Nh5 {[%emt 0:05:30]} 18. Qxh5 {[%emt 0:04:48]} Rxd2 {[%emt 0:00:12]} 19. Bb3 {[%emt 0:01:18]} Qg6 {[%emt 0:03:15]} 20. Qh4 {[%emt 0:07:54]} Qd6 21. Rg3 {[%emt 0:02:59]} g6 {[%emt 0:25:54]} 22. Qh6 {[%emt 0:16:48]} Na5 {[%emt 0:07:16]} 23. Bd5 {[%emt 0:02:02]} Rxb2 {[%emt 0:00:35]} 24. Rd1 {[%emt 0:00:49]} Qb6 {[%emt 0:00:17]} 25. Bxf7+ {[%emt 0:01:06]} Kxf7 {[%emt 0:00:42]} 26. Rf3+ {[%emt 0:00:12]} 1-0

[Event "GER-chT Youth Countries 2020"]
[Site "Berlin"]
[Date "2020.10.03"]
[Round "6"]
[White "Nguyen, Huy Dat"]
[Black "Wu, Luka"]
[Result "1-0"]
[ECO "B50"]
[WhiteElo "2166"]
[BlackElo "2019"]
[Annotator "ChessBase"]
[PlyCount "91"]
[EventDate "2020.09.30"]
[EventType "team-tourn"]
[EventRounds "7"]
[EventCountry "GER"]
[SourceTitle "playchess.com"]
[Source "ChessBase"]
[SourceQuality "1"]
[TimeControl "30/5400+30:0"]

1. e4 {[%emt 0:00:00]} c5 {[%emt 0:00:00]} 2. Nf3 {[%emt 0:00:00]} d6 {[%emt 0:00:00]} 3. Bc4 {[%emt 0:00:00]} a6 {[%emt 0:04:40]} 4. a4 {[%emt 0:00:13]} Nf6 {[%emt 0:00:24]} 5. d3 {[%emt 0:00:36]} Bg4 {[%emt 0:00:38]} 6. e5 {[%emt 0:06:53]} d5 {[%emt 0:10:25]} 7. Bb3 {[%emt 0:00:39]} Ng8 {[%emt 0:00:54]} 8. h3 {[%emt 0:03:04]} Bh5 {[%emt 0:02:46]} 9. g4 {[%emt 0:04:36]} Bg6 {[%emt 0:00:11]} 10. Bg5 {[%emt 0:01:18]} h6 {[%emt 0:02:23]} 11. Bh4 {[%emt 0:04:49]} Qa5+ {[%emt 0:00:40]} 12. Nbd2 {[%emt 0:02:06]} e6 {[%emt 0:00:20]} 13. Qe2 {[%emt 0:01:37]} Ne7 {[%emt 0:06:11]} 14. Bg3 {[%emt 0:05:27]} Nec6 {[%emt 0:04:57]} 15. c3 {[%emt 0:01:36]} Nd7 {[%emt 0:02:12]} 16. O-O {[%emt 0:02:12]} Be7 {[%emt 0:02:05]} 17. Bc2 {[%emt 0:03:04]} Qc7 {[%emt 0:05:16]} 18. Rfc1 {[%emt 0:05:43]} Ra7 {[%emt 0:09:23]} 19. d4 {[%emt 0:01:21]} Bxc2 {[%emt 0:01:24]} 20. Rxc2 {[%emt 0:00:06]} c4 {[%emt 0:00:17]} 21. Nf1 {[%emt 0:02:29]} b5 {[%emt 0:00:20]} 22. N3h2 {[%emt 0:07:12]} Qa5 {[%emt 0:22:49]} 23. f4 {[%emt 0:01:39]} bxa4 {[%emt 0:00:52]} 24. f5 {[%emt 0:01:08]} g6 {[%emt 0:01:52]} 25. Qf3 {[%emt 0:04:09]} a3 {[%emt 0:04:16]} 26. bxa3 {[%emt 0:00:52]} Nb6 {[%emt 0:01:39]} 27. a4 {[%emt 0:03:36]} Rb7 {[%emt 0:10:50]} 28. Be1 {[%emt 0:02:48]} Nd7 {[%emt 0:01:23]} 29. Ne3 {[%emt 0:04:49]} Rb3 {[%emt 0:00:49]} 30. Nxc4 {[%emt 0:02:22]} Qc7 {[%emt 0:02:11]} 31. Nd6+ {[%emt 1:31:25]} Bxd6 {[%emt 1:30:21]} 32. exd6 {[%emt 0:00:04]} Qxd6 {[%emt 0:00:06]} 33. Bg3 {[%emt 0:02:24]} Qe7 {[%emt 0:00:08]} 34. fxe6 {[%emt 0:01:04]} fxe6 {[%emt 0:00:11]} 35. Qd3 {[%emt 0:01:13]} Rg8 {[%emt 0:03:45]} 36. Qxa6 {[%emt 0:09:51]} Nxd4 {[%emt 0:00:12]} 37. Bd6 {[%emt 0:02:11]} Rb6 {[%emt 0:00:49]} 38. Qc8+ {[%emt 0:02:20]} Qd8 {[%emt 0:00:12]} 39. cxd4 {[%emt 0:01:04]} Rxd6 {[%emt 0:00:10]} 40. Rf1 {[%emt 0:03:54]} Ke7 {[%emt 0:00:35]} 41. Qc3 {[%emt 0:02:16]} Qb6 {[%emt 0:00:00]} 42. a5 {[%emt 0:00:00]} Qa7 {[%emt 0:00:00]} 43. Rcf2 {[%emt 0:00:00]} Rf8 {[%emt 0:00:00]} 44. Nf3 {[%emt 0:00:00]} Rf4 {[%emt 0:00:00]} 45. Kg2 {[%emt 0:00:00]} g5 {[%emt 0:00:00]} 46. Qa3 {[%emt 0:00:00]} 1-0